Cogmind - Beta 11.1 @@@ ROGUE MODE // 2022.12.18 @ 12:52:08 Player: QQQQ Result: Core destroyed Performance ------------- Evolutions (2) 1000 Regions Visited (5) 1000 Robots Destroyed (13) 65 Value Destroyed (193) 193 Prototype IDs (4) 80 Alien Tech Used (0) 0 Bonus (405) 405 TOTAL SCORE: 2743 Bonus ------- Follower Combat Kills 105 Aligned with FarCom 300 Cogmind --------- Core Integrity 0/550 Matter 268/300 Energy 100/100 System Corruption 74% Temperature Cool (0) Movement Core (300) Ox5 Location -8/Materials Parts ------- > --- POWER (1) -------- Light Ion Engine > --- PROPULSION (4) --- Flying Fortress v7 > --- UTILITY (4) ------ Heat Sink Improved Heat Sink Medium Storage Unit > --- WEAPON (2) ------- Minigun > --- INVENTORY (10) --- Ion Engine Light Ion Engine Light Nuclear Core Compact Wheel Small Storage Unit Compact Battery (200) Field Laser Particle Cannon Particle Cannon Minigun Peak State ------------ > --- POWER ------------ Light Ion Engine > --- PROPULSION ------- Flying Fortress v7 > --- UTILITY ---------- Heat Sink Improved Heat Sink Medium Storage Unit > --- WEAPON ----------- Minigun Minigun > --- INVENTORY -------- Ion Engine Light Ion Engine Light Nuclear Core Compact Wheel Compact Wheel Small Storage Unit Field Laser Particle Cannon Particle Cannon [Rating: 45] Favorites ----------- Power Light Ion Engine Engine Light Ion Engine Propulsion Aluminum Leg Leg Aluminum Leg Wheel Compact Wheel Flight Unit Flying Fortress v7 Utility Medium Storage Unit Device Heat Sink Storage Medium Storage Unit Weapon Particle Cannon Energy Gun Small Laser Energy Cannon Particle Cannon Ballistic Gun Minigun Special Weapon Welding Torch Build | -11 -10 -10 -10 -9 -8 ------- Run | Scr Mat Min Exi Min Mat Slots Evolved 4 | . . . . . 4 Power . | . . . . . . Propulsion 2 | . . . . . 2 Utility 2 | . . . . . 2 Weapon . | . . . . . . Parts Attached 23 | 6 4 1 2 5 5 Power 3 | 1 . . . 2 . Engine 3 | 1 . . . 2 . Core . | . . . . . . Reactor . | . . . . . . Propulsion 5 | 2 . . . 2 1 Treads . | . . . . . . Leg 2 | 2 . . . . . Wheel 2 | . . . . 2 . Hover . | . . . . . . Flight 1 | . . . . . 1 Utility 8 | 1 2 1 2 1 1 Device 6 | . 1 1 2 1 1 Storage 2 | 1 1 . . . . Processor . | . . . . . . Hackware . | . . . . . . Protection . | . . . . . . Artifact . | . . . . . . Weapon 7 | 2 2 . . . 3 Energy Gun 1 | 1 . . . . . Energy Cannon 2 | . 2 . . . . Ballistic Gun 3 | 1 . . . . 2 Ballistic Cannon . | . . . . . . Launcher . | . . . . . . Special Weapon 1 | . . . . . 1 Impact Weapon . | . . . . . . Slashing Weapon . | . . . . . . Piercing Weapon . | . . . . . . Special Melee Weapon . | . . . . . . Unidentified Prototypes 4 | . . 1 2 . 1 Parts Lost 2 | . . . . 1 1 Power 1 | . . . . 1 . Propulsion . | . . . . . . Utility . | . . . . . . Weapon 1 | . . . . . 1 Highest Loss Streak 1 | . . . . 1 1 To Critical Strikes . | . . . . . . Average Slot Usage (%) 86 | . 99 100 85 93 54 Engine 13 | . 14 14 14 14 9 Leg 21 | . 28 28 28 16 . Wheel 1 | . . . . 11 . Flight 1 | . . . . . 9 Device 8 | . 13 14 . 8 16 Storage 13 | . 14 14 14 14 9 Energy Gun 1 | . 6 . . . . Energy Cannon 21 | . 14 28 28 28 2 Ballistic Gun 2 | . 7 . . . 8 Naked Turns . | . . . . . . Heaviest Build 22 | 11 22 22 22 22 22 Greatest Support 50 | 20 20 20 20 32 50 Greatest Overweight (x) 5 | . 1 1 1 1 5 Average Overweight (x) . | . . 1 1 . . Largest Inventory Capacity 10 | 8 10 10 10 10 10 Average Capacity 9 | 7 8 10 10 10 10 Most Carried 10 | 2 10 10 10 10 10 Average Carried 8 | 1 5 10 9 9 9 Final Capacity 10 | 8 10 10 10 10 10 Final Carried 10 | 2 10 10 10 9 10 Class Distribution -------------------- 100% | Mutant Dominant Class ---------------- Mutant | -10/Materials Mutant | -10/Mines Mutant | -10/Exiles Mutant | -9/Mines Mutant | -8/Materials Resources | -11 -10 -10 -10 -9 -8 ----------- Run | Scr Mat Min Exi Min Mat Matter Collected 429 | 260 49 10 . 70 40 Remotely . | . . . . . . Salvage Created 348 | . 59 36 . 207 46 Parts 31 | . 7 . . 20 4 Haulers Intercepted . | . . . . . . Recyclers Shooed . | . . . . . . Parts Field Recycled . | . . . . . . Retrieved Matter . | . . . . . . Parts Self-Destructed . | . . . . . . Prevented . | . . . . . . Kills | -11 -10 -10 -10 -9 -8 ------- Run | Scr Mat Min Exi Min Mat Combat Hostiles Destroyed 13 | . 1 2 . 9 1 Guns 1 | . 1 . . . . Cannons 12 | . . 2 . 9 1 Classes Destroyed 5 | . 2 1 . 2 . Recycler 1 | . . . . 1 . Watcher 1 | . 1 . . . . Swarmer 9 | . . . . 9 . Grunt 2 | . 1 . . . 1 Assembled 2 | . . 2 . . . Best Kill Streak 7 | . 1 1 . 7 1 Combat Bots Only 6 | . 1 1 . 6 1 Max Kills in Single Turn 1 | . 1 1 . 1 1 Gunslinging . | . . . . . . Exploded . | . . . . . . Melee . | . . . . . . Uniques/NPCs Destroyed . | . . . . . . Combat | -11 -10 -10 -10 -9 -8 -------- Run | Scr Mat Min Exi Min Mat Damage Taken 1247 | . 11 17 . 474 745 Core 683 | . . . . 133 550 Absorbed by Shields . | . . . . . . Core Remaining (%) 73 | 100 . . . 46 . Volleys Fired 40 | . 4 3 . 26 7 Largest 2 | . 2 2 . 2 2 Hottest 136 | . 136 136 . 136 136 Shots Fired 72 | . 8 6 . 45 13 Gun 6 | . 6 . . . . Cannon 65 | . 2 6 . 45 12 Launcher . | . . . . . . Special 1 | . . . . . 1 Kinetic 3 | . 3 . . . . Thermal 69 | . 5 6 . 45 13 Explosive . | . . . . . . Electromagnetic . | . . . . . . Robot Hit Streak 5 | . 2 2 . 5 4 Robot Miss Streak 5 | . 2 2 . 5 1 Penetration Max . | . . . . . . Secondary Targets . | . . . . . . Shots Hit Robots 33 | . 5 2 . 18 8 Core Hits 19 | . 4 2 . 10 3 Critical Kills . | . . . . . . Critical Parts Destroyed . | . . . . . . Critical Strikes . | . . . . . . Melee Attacks . | . . . . . . Impact . | . . . . . . Slashing . | . . . . . . Piercing . | . . . . . . Sneak Attacks . | . . . . . . Combat Hostiles . | . . . . . . Follow-up Attacks . | . . . . . . Damage Inflicted 1005 | . 63 41 . 493 408 Guns 43 | . 43 . . . . Cannons 758 | . 20 41 . 493 204 Explosions . | . . . . . . Melee . | . . . . . . Ramming 204 | . . . . . 204 Kinetic 22 | . 22 . . . . Thermal 779 | . 41 41 . 493 204 Explosive . | . . . . . . Electromagnetic . | . . . . . . Impact . | . . . . . . Slashing . | . . . . . . Piercing . | . . . . . . Highest Corruption 74 | . . . . . 74 Average Corruption 41 | . . . . . 41 Corruption Purged . | . . . . . . Corruption Blocked . | . . . . . . Effects 14 | . . . . . 14 Message Errors 7 | . . . . . 7 Matter Fused 3 | . . . . . 3 Heat Flow Errors 1 | . . . . . 1 Data Loss (minor) 1 | . . . . . 1 Data Loss (major) 1 | . . . . . 1 Alerts 1 | . . . . . 1 Overload Shots . | . . . . . . Overflow Damage 3 | . . . . 3 . Projectiles 3 | . . . . 3 . Explosions . | . . . . . . Melee . | . . . . . . Knockbacks . | . . . . . . Impact . | . . . . . . Kinetic . | . . . . . . Secondary . | . . . . . . Self-Inflicted Damage 204 | . . . . . 204 Shots . | . . . . . . Rammed . | . . . . . . Targets Rammed . | . . . . . . Kicked . | . . . . . . Crushed . | . . . . . . Highest Temperature 455 | . 75 150 . 455 269 Average Temperature 200 | . 24 67 . 256 133 Received Heat Transfer 6 | . 6 . . . . Effects 9 | . . . . 8 1 Shutdowns 3 | . . . . 3 . Energy Bleed 3 | . . . . 2 1 Interference 2 | . . . . 2 . Short Circuit 1 | . . . . 1 . Siege Activations . | . . . . . . Robots Corrupted . | . . . . . . Combat Hostiles . | . . . . . . Parts Fried . | . . . . . . Impact Corruptions . | . . . . . . Robots Melted . | . . . . . . Combat Hostiles . | . . . . . . Parts Melted 2 | . . . . 2 . Heat Transferred 1419 | . 87 74 . 888 370 Parts Sabotaged . | . . . . . . Parts Stolen . | . . . . . . Parts Stripped . | . . . . . . Power Chain Reactions . | . . . . . . Missiles Intercepted . | . . . . . . Alert | -11 -10 -10 -10 -9 -8 ------- Run | Scr Mat Min Exi Min Mat Peak Influence 210 | . 42 16 . 210 159 Initial 81 | . . 16 . . 81 Average 81 | . 26 16 . 157 131 Maximum Alert Level 1 | . . . . 1 . Low Security (%) 87 | 100 100 100 . 50 100 Level 1 12 | . . . . 49 . Level 2 . | . . . . . . Level 3 . | . . . . . . Level 4 . | . . . . . . Level 5 . | . . . . . . High Security . | . . . . . . Max Security . | . . . . . . Squads Dispatched . | . . . . . . Investigation . | . . . . . . Extermination . | . . . . . . Reinforcement . | . . . . . . Assault . | . . . . . . Garrison . | . . . . . . Intercept . | . . . . . . Searches Triggered . | . . . . . . Construction Impeded . | . . . . . . Haulers Reinforced . | . . . . . . Active Scanning Responses . | . . . . . . Cargo Convoy Interrupts . | . . . . . . Stealth | -11 -10 -10 -10 -9 -8 --------- Run | Scr Mat Min Exi Min Mat Distress Signals 2 | . 1 1 . . . Communications Jammed . | . . . . . . Distress Signals . | . . . . . . Times Spotted 22 | . 3 3 . 9 7 Peak Tracking Total 4 | . 2 1 . 4 3 Tactical Retreats 1 | . . 1 . . . Traps | -11 -10 -10 -10 -9 -8 ------- Run | Scr Mat Min Exi Min Mat Traps Triggered . | . . . . . . Indirectly . | . . . . . . Trap Hack Attempts . | . . . . . . Triggered . | . . . . . . Disarmed . | . . . . . . Reprogrammed . | . . . . . . Reused . | . . . . . . Traps Extracted . | . . . . . . Installed . | . . . . . . Triggered . | . . . . . . Machines | -11 -10 -10 -10 -9 -8 ---------- Run | Scr Mat Min Exi Min Mat Machines Disabled . | . . . . . . Max in Single Turn . | . . . . . . Machines Sabotaged . | . . . . . . Garrisons Compromised . | . . . . . . Overloaded Fab Kills . | . . . . . . Hacking | -11 -10 -10 -10 -9 -8 --------- Run | Scr Mat Min Exi Min Mat Machines Accessed 2 | . 1 . . . 1 Terminals 2 | . 1 . . . 1 Fabricators . | . . . . . . Repair Stations . | . . . . . . Recycling Units . | . . . . . . Scanalyzers . | . . . . . . Garrison Access . | . . . . . . Total Hacks 2 | . 1 . . . 1 Successful . | . . . . . . Failed 2 | . 1 . . . 1 Catastrophic 2 | . 1 . . . 1 Database Lockouts . | . . . . . . Manual 3 | . 1 . 1 . 1 Terminals 2 | . 1 . . . 1 Fabricators . | . . . . . . Repair Stations . | . . . . . . Recycling Units . | . . . . . . Scanalyzers . | . . . . . . Garrison Access . | . . . . . . Terminal Hacks . | . . . . . . Fabricator Hacks . | . . . . . . Repair Station Hacks . | . . . . . . Recycling Unit Hacks . | . . . . . . Scanalyzer . | . . . . . . Garrison Access Hacks . | . . . . . . Unauthorized Hacks . | . . . . . . Terminals . | . . . . . . Fabricators . | . . . . . . Repair Stations . | . . . . . . Recycling Units . | . . . . . . Scanalyzers . | . . . . . . Garrison Access . | . . . . . . Data Cores Recovered . | . . . . . . Used . | . . . . . . Hacking Detections 2 | . 1 . . . 1 Full Trace Events . | . . . . . . Feedback Events . | . . . . . . Feedback Blocked . | . . . . . . Robot Schematics Acquired . | . . . . . . Robots Built . | . . . . . . Authchips . | . . . . . . Time . | . . . . . . Total Robot Build Rating . | . . . . . . Part Schematics Acquired . | . . . . . . Parts Built . | . . . . . . Authchips . | . . . . . . Time . | . . . . . . Total Part Build Rating . | . . . . . . Parts Repaired . | . . . . . . Time . | . . . . . . Parts Recycled . | . . . . . . Recycled Matter . | . . . . . . Retrieved Matter . | . . . . . . Retrieved Components . | . . . . . . Parts Scanalyzed . | . . . . . . Part Schematics Acquired . | . . . . . . Parts Damaged . | . . . . . . Bothacking | -11 -10 -10 -10 -9 -8 ------------ Run | Scr Mat Min Exi Min Mat Used RIF Installer . | . . . . . . Robots Hacked . | . . . . . . Non-combat . | . . . . . . Combat . | . . . . . . Robot Hacks Applied . | . . . . . . Relay Couplers Released . | . . . . . . Fabnet Peak Effective % . | . . . . . . Robots Rewired . | . . . . . . Allies Hacked . | . . . . . . Hacks Repelled . | . . . . . . Allies | -11 -10 -10 -10 -9 -8 -------- Run | Scr Mat Min Exi Min Mat Total Allies 2 | . . . . 2 . Largest Group 2 | . . . . 2 2 Highest-Rated Group 47 | . . . . 47 47 Highest-Rated Ally 31 | . . . . 31 31 Total Orders . | . . . . . . Ally Attacks 18 | . . . . . 18 Total Damage 271 | . . . . . 271 Kills 3 | . . . . . 3 Allies Corrupted . | . . . . . . Allies Melted . | . . . . . . Intel | -11 -10 -10 -10 -9 -8 ------- Run | Scr Mat Min Exi Min Mat Robot Analysis Total . | . . . . . . Derelict Logs Recovered 1 | . . 1 . . . Drone Launches . | . . . . . . Drone Recoveries . | . . . . . . Exploration | -11 -10 -10 -10 -9 -8 ------------- Run | Scr Mat Min Exi Min Mat Turns Passed 2123 | 52 339 298 772 332 330 Spaces Moved 966 | 37 219 100 403 140 67 Core 6 | 4 . . . . 2 Treads . | . . . . . . Legs 784 | 33 219 100 403 29 . Wheels 111 | . . . . 111 . Hover . | . . . . . . Flight 65 | . . . . . 65 Fastest Speed 50 | 50 120 190 190 100 50 Average Speed 156 | 112 140 190 190 118 57 Slowest Speed 300 | 120 190 190 190 190 300 Overloaded Moves . | . . . . . . Propulsion Burnouts . | . . . . . . Robots Hopped . | . . . . . . Cave-ins Triggered . | . . . . . . Exploration Rate (%) 29 | 3 35 14 89 29 7 Regions Visited 5 Branch Regions 3 Pre-discovered Areas 1 | . . 1 . . . Known Exits Taken . | . . . . . . Unknown Exits Taken 5 | 1 1 1 1 1 . Scrap Searched . | . . . . . . Spaces Dug . | . . . . . . Terrain Destroyed 1 | . . . . . 1 Melee . | . . . . . . Projectile . | . . . . . . AOE . | . . . . . . Terrain Rammed 91 | . . . . . 91 Walls Destroyed 1 | . . . . . 1 Machines Disabled . | . . . . . . Actions | -11 -10 -10 -10 -9 -8 --------- Run | Scr Mat Min Exi Min Mat Total 1342 | 44 243 202 412 260 181 Wait 190 | . 6 98 . 84 2 Move 961 | 36 218 99 402 139 67 Hop . | . . . . . . Pick Up 19 | 2 8 . 1 3 5 Fast Attach 16 | 6 3 1 2 1 3 Attach 3 | . . . . 2 1 Detach 1 | . . . . . 1 Swap 4 | . 1 . . 2 1 Drop 18 | . 3 1 7 3 4 Fire 40 | . 4 3 . 26 7 Melee . | . . . . . . Ram 90 | . . . . . 90 Kick . | . . . . . . Crush . | . . . . . . Escape Stasis . | . . . . . . Rewire . | . . . . . . Trap . | . . . . . . Miscellaneous . | . . . . . . Route ------- -11/Scrapyard -10/Materials -10/Mines -10/Exiles -9/Mines -8/Materials History --------- Turn | Location | Event 24 | -11/Scrapyard | Discovered new exit (range 16) 53 | -11/Scrapyard | Entered Materials 261 | -10/Materials | Discovered new exit (range 7) 309 | -10/Materials | Build established: Mutant 392 | -10/Materials | Entered Mines 415 | -10/Mines | Learned location of Storage (-9) 442 | -10/Mines | Found a damaged Exp. Sensor Array with a note attached 443 | -10/Mines | Assembled infested the area 446 | -10/Mines | Found Prototype Device 446 | -10/Mines | Identified Exp. Sensor Array 678 | -10/Mines | Deemed a non-threat by the Exiles lab entrance 680 | -10/Mines | Discovered new exit (range 5) 690 | -10/Mines | Entered Exiles 735 | -10/Exiles | Met 8R-AWN 771 | -10/Exiles | Met EX-HEX 830 | -10/Exiles | Met EX-BIN 851 | -10/Exiles | Aligned with FarCom system 852 | -10/Exiles | Given EX-Vault access code 898 | -10/Exiles | Opened EX-Vault 908 | -10/Exiles | Found Prototype Device 908 | -10/Exiles | Identified Chronowheel 908 | -10/Exiles | Activated Chronowheel 913 | -10/Exiles | Found Prototype Device 913 | -10/Exiles | Identified PSU Rigger 921 | -10/Exiles | Found Prototype Flight Unit 964 | -10/Exiles | Warned to stay clear of 0b10 Research branches 1017 | -10/Exiles | Met EX-DEC 1147 | -10/Exiles | Visited The Gauntlet 1447 | -10/Exiles | Discovered new exit (range 10) 1462 | -10/Exiles | Left Exiles lab with Flying Fortress v7 1462 | -10/Exiles | Entered Mines 1629 | -9/Mines | Core integrity fell below 50% 1760 | -9/Mines | Discovered new exit (range 9) 1794 | -9/Mines | Entered Materials 1794 | -8/Materials | Accompanied by 2 allies 1794 | -8/Materials | Evolved 4 slots: Propulsion x2, Utility x2 1796 | -8/Materials | Identified Flying Fortress v7 1799 | -8/Materials | Led the pair of lost Derelicts to an unsafe place 1882 | -8/Materials | System corruption reached 10% 1945 | -8/Materials | System corruption reached 30% 1975 | -8/Materials | Core integrity fell below 50% 2083 | -8/Materials | Core integrity fell below 20% 2124 | -8/Materials | Core destroyed Last Messages --------------- 02088_ Slammed into Wall. 02091_ Destabilizing: System corrupted (+1). 02094_ Slammed into Wall. 02094_ Destabilizing: System corrupted (+1). 02094_ Destabilizing: Core damaged (-5). 02097_ Slammed into Wall. 02097_ Destabilizing: Core damaged (-5). 02100_ Slammed into Wall. 02100_ Destabilizing: System corrupted (+2). 02103_ Slammed into Wall. 02104_ VTEOYVKY44,2|GJ&YAPP 02106_ Slammed into Wall. 02106_ Destabilizing: Core damaged (-5). 02109_ Slammed into Wall. 02118_ Destabilizing: Core damaged (-27). 02119_ 5B2BM7BWVY3EVQGCPMM 71C#LK 02121_ Slammed into Wall. 02121_ Destabilizing: Core damaged (-27). 02124_ Slammed into Wall. 02124_ Destabilizing: Core damaged (-11). Map ----- +----------------------------------------------------+ | ??????????????????????????????? | | ??????????????????????????????? | | ??????????????????????????????? | | ??????????????????????????????? | | ??????????????????????????????? | | ??????????????????????????????? | | ??????????????????????????????? | | ??????????????????????????????? | | ??????????????????????????????? | | ??????????????????????????????? | | ??????????????????????????????? | | ??????????????????????????????? | | ??????????????????????????????? | | ??????????????????????????????? | | ??????????????????????????????? | | ?????##???????????????????????? | | ????? /???????????????????????? | | ????? #??????????????????????? | | ????"" #??????????????????????? | | ?# """ #??????????????????????? | | ?# """ #??????????????????????? | | ?# """ #??????????????????????? | | ?# #??????????????????????? | | ?# """ #??????????????????????? | | ?# """ #??????????????????????? | | ?# """@#??????????????????????? | | ?# """a#??????????????????????? | | ?# ##?????????????????????? | | ?######=#######???##+#########? | | ??????## ##### ## | | ???????# """ / g "" | | ???????# "T" ##### ] !!! Y | | ???????# = #???# ] !!!"" | | ???????#]] #???# ] !!## | | ???????#] =#???# #? | | ???????####+####### ## | | ???????# | | ???????# % [= | | ???????# =%=[ | | ???????########## """ %""" | | ????????????????# """ """ | | ????????????????# """ """ | | ????????????????# ! | | ????????????????# ! | | ????????????????# ! | | ????????????????# | | ????????????????# ############ | | ????????????????# #??????????? | | ????????????????# #??????????? | | ????????????????# #??????????? | +----------------------------------------------------+ Best States ------------- Heat Dissipation 55 Energy Generation 10 Energy Capacity 125 Matter Stores 300 Matter Capacity 300 Sight Range 16 Robot Scan Range 20 Terrain Scan Density 10 Evasion (%) 60 Item Schematics ----------------- None Robot Schematics ------------------ None Fabricated ------------ Nothing Alien Tech Used ----------------- None Achievements -------------- Z1$+NX3F=JRE3_ZNQR Challenges ------------ None Game ------ Seed MasterBiometalPrototype Manual? 0 Play Time 00:23:03 Cumulative 34.9 hours Start 2022.12.17 @ 18:54:30 End 2022.12.18 @ 12:52:08 Sessions 3 Manual Loads 0 Difficulty Rogue Special Mode None Game No. 24 Rogue 24 Adventurer 0 Explorer 0 Win Type - Total 0 Types 0/0/0/0/0/0/0/0/0 Lore% 34 Gallery% 30 Achievement% 29 Wizard Run 0 Options --------- ASCII 0 Keyboard 0 Movement Mouse Keybinds 0 Fullscreen 2 Font 18/TerminusBold Map View 76x50 Tactical HUD 1 Map Filters NONE Filters NONE Steam 1 RUN: 78258bad-2ff5-4991-8e39-4c9eb651631a